bitfinex/quotes_BTCUSD_20240607
["timestamp","ask_amount","ask_price","bid_price","bid_amount"]
[1717793518599,1.61667169,69215.0,69214.0,0.06794937]
[1717793519262,1.34657169,69215.0,69214.0,0.06794937]
[1717793519464,1.41667169,69215.0,69214.0,0.06794937]
[1717793520548,1.34974649,69215.0,69214.0,0.06794937]
[1717793520999,1.36374649,69215.0,69214.0,0.06794937]
[1717793522572,1.36374649,69215.0,69214.0,0.06889537]
[1717793522785,1.29364649,69215.0,69214.0,0.06889537]
[1717793523001,1.36374649,69215.0,69214.0,0.06889537]
[1717793526374,1.42159649,69215.0,69214.0,0.06889537]
[1717793528566,1.42143528,69215.0,69214.0,0.06889537]
[1717793529124,0.87581635,69215.0,69214.0,0.06889537]
[1717793529325,0.88776131,69215.0,69214.0,0.30509537]
[1717793529555,0.74358935,69215.0,69214.0,0.30509537]
[1717793529765,0.8083253,69215.0,69214.0,0.30509537]
[1717793529984,0.74358935,69215.0,69214.0,0.14679537]
[1717793530171,0.82991131,69215.0,69214.0,0.06889537]
[1717793530332,1.2313688,69215.0,69214.0,0.06889537]
[1717793530743,0.93149069,69215.0,69214.0,0.06889537]
[1717793530947,1.12359543,69215.0,69214.0,0.06889537]
[1717793531938,1.12347863,69215.0,69214.0,0.06889537]
[1717793534356,1.12347683,69215.0,69214.0,0.06889537]
[1717793534661,1.17898543,69215.0,69214.0,0.06889537]
[1717793534982,1.12347683,69215.0,69214.0,0.06889537]
[1717793535388,1.17865818,69215.0,69214.0,0.06889537]
[1717793537155,1.17865818,69215.0,69214.0,0.06630237]
[1717793537847,1.10855818,69215.0,69214.0,0.06630237]
[1717793538051,0.94325818,69215.0,69214.0,0.06630237]
[1717793538904,0.87315818,69215.0,69214.0,0.06630237]
[1717793539101,0.94325818,69215.0,69214.0,0.06630237]
[1717793539463,0.87315818,69215.0,69214.0,0.06630237]
[1717793539613,0.86315818,69215.0,69214.0,0.06630237]
[1717793539944,0.93325818,69215.0,69214.0,0.06630237]
[1717793541598,1.04119073,69215.0,69214.0,0.06630237]
[1717793541813,0.97109073,69215.0,69214.0,0.06630237]
[1717793542022,1.04119073,69215.0,69214.0,0.06630237]
[1717793542789,0.93325818,69215.0,69214.0,0.06630237]
[1717793543698,0.71868118,69215.0,69214.0,0.06630237]
[1717793543900,0.89678694,69215.0,69214.0,0.06630237]
[1717793544106,0.62668694,69215.0,69214.0,0.08630237]
[1717793544402,0.50670298,69215.0,69214.0,0.46618137]
[1717793544620,0.46349983,69215.0,69214.0,0.48918137]
[1717793544839,0.43081932,69215.0,69214.0,0.48918137]
[1717793545254,0.10281393,69215.0,69214.0,0.48918137]
[1717793545471,0.02681393,69215.0,69214.0,0.48918137]
[1717793545690,0.04081393,69215.0,69214.0,0.48918137]
[1717793545904,0.32674138,69215.0,69214.0,0.48918137]
[1717793546148,0.44074138,69215.0,69214.0,0.48918137]
[1717793546362,0.14081393,69215.0,69214.0,0.48918137]
[1717793546786,0.12681393,69215.0,69214.0,0.48918137]
[1717793547198,0.04081393,69215.0,69214.0,0.48918137]
[1717793547670,0.01281393,69215.0,69214.0,0.49918137]
[1717793547888,0.14320315,69223.0,69222.0,0.02]
[1717793548101,0.44311133,69223.0,69222.0,0.2494]
[1717793548321,0.44312273,69223.0,69222.0,0.2494]
[1717793548563,0.44312598,69223.0,69222.0,0.2494]
[1717793549038,0.44312598,69223.0,69222.0,0.416862]
[1717793549039,0.1432178,69223.0,69222.0,0.416862]
[1717793549287,0.02287957,69223.0,69222.0,0.416862]
[1717793550603,0.03687957,69223.0,69222.0,0.416862]
[1717793550987,0.02287957,69223.0,69222.0,0.416862]
[1717793551207,0.00887957,69223.0,69222.0,0.416862]
[1717793551371,0.02287957,69223.0,69222.0,0.416862]
[1717793551575,0.03687957,69223.0,69222.0,0.416862]
[1717793551993,0.02287957,69223.0,69222.0,0.416862]
[1717793552286,0.03687957,69223.0,69222.0,0.416862]
[1717793559738,0.03687957,69223.0,69222.0,0.98000213]
[1717793559943,0.028,69223.0,69222.0,0.98000213]
[1717793560452,0.028,69223.0,69222.0,1.26892713]
[1717793560615,0.028,69223.0,69222.0,1.46892713]
[1717793560846,0.4760925,69235.0,69234.0,0.692412]
[1717793561060,0.00086,69239.0,69238.0,0.393529]
[1717793561270,0.00086,69239.0,69238.0,0.64104793]
[1717793561389,0.00086,69239.0,69238.0,0.63104793]
[1717793561820,0.0006592,69239.0,69238.0,0.63104793]
[1717793562232,0.0006592,69239.0,69238.0,0.56094793]
[1717793562426,0.0707592,69239.0,69232.0,0.1509]
[1717793562631,0.0847592,69239.0,69226.0,0.02]
[1717793562852,0.0701,69230.0,69228.0,0.14445]
[1717793563269,0.0701,69230.0,69220.0,0.1509]
[1717793563477,0.0701,69221.0,69220.0,0.1509]
[1717793563900,0.14315142,69229.0,69223.0,0.02]
[1717793563901,0.0701,69224.0,69223.0,0.02]
[1717793565331,0.0811,69224.0,69223.0,0.021]
[1717793565536,0.023,69224.0,69223.0,0.16646]
[1717793568971,0.023,69224.0,69223.0,0.14646]
[1717793569361,0.023,69224.0,69223.0,0.16646]
[1717793571217,0.03194051,69224.0,69223.0,0.16646]
[1717793573292,0.33184138,69224.0,69223.0,0.16646]
[1717793573490,0.13194051,69224.0,69223.0,0.16646]
[1717793574396,0.43183971,69224.0,69223.0,0.16646]
[1717793581504,0.13194051,69224.0,69223.0,0.26526]
[1717793581710,0.03194051,69224.0,69223.0,0.26526]
[1717793586596,0.07517643,69224.0,69223.0,0.26526]
[1717793586840,0.17517643,69224.0,69223.0,0.26526]
[1717793587227,0.17517643,69224.0,69223.0,0.266206]
[1717793587455,0.19679439,69224.0,69223.0,0.266206]
[1717793587656,0.13194051,69224.0,69223.0,0.266206]
[1717793587864,0.03194051,69224.0,69223.0,0.266206]
[1717793588290,0.09679439,69224.0,69223.0,0.266206]
[1717793589364,0.03194051,69224.0,69223.0,0.266206]
[1717793589523,0.13194051,69224.0,69223.0,0.266206]
[1717793589723,0.43183017,69224.0,69223.0,0.266206]
[1717793589924,0.51830201,69224.0,69223.0,0.266206]
[1717793590332,0.43183017,69224.0,69223.0,0.266206]
[1717793592365,0.53991997,69224.0,69223.0,0.266206]
[1717793592576,0.57308764,69224.0,69223.0,0.266206]
[1717793594481,0.46499784,69224.0,69223.0,0.266206]
[1717793594895,0.57308764,69224.0,69223.0,0.266206]
[1717793595096,0.46499784,69224.0,69223.0,0.266206]
[1717793597172,0.55163705,69224.0,69223.0,0.56292493]
[1717793597343,0.49680848,69224.0,69223.0,0.56292493]
[1717793597750,0.13194051,69224.0,69223.0,0.57292493]
[1717793598005,0.03194051,69224.0,69223.0,0.57292493]
[1717793598680,0.03194051,69224.0,69223.0,0.56292493]
[1717793598901,0.00894051,69224.0,69223.0,0.56092493]
[1717793599112,0.01994051,69224.0,69223.0,0.56192493]
[1717793599319,0.03294051,69224.0,69223.0,0.56292493]
[1717793599559,0.02194051,69224.0,69223.0,0.56192493]
[1717793599891,0.03394051,69224.0,69223.0,0.57292493]
[1717793600501,0.0772571,69224.0,69223.0,0.56292493]
[1717793601440,0.02094051,69224.0,69223.0,0.56192493]
[1717793601866,0.03194051,69224.0,69223.0,0.56292493]
[1717793602101,0.01994051,69224.0,69223.0,0.56192493]
[1717793602930,0.0632571,69224.0,69223.0,0.56192493]
[1717793603077,0.01994051,69224.0,69223.0,0.56192493]
[1717793603681,0.01994051,69224.0,69223.0,0.92505842]
[1717793604069,0.011,69224.0,69223.0,0.92505842]
[1717793604913,0.011,69224.0,69223.0,0.86084593]
[1717793605432,0.011,69224.0,69223.0,0.86044593]
[1717793615851,0.011,69224.0,69223.0,0.93064593]
[1717793624404,0.011,69224.0,69223.0,0.92564593]
[1717793629566,0.011,69224.0,69223.0,1.21456693]
[1717793631767,0.011,69224.0,69223.0,1.23449169]
[1717793632059,0.011,69224.0,69223.0,0.98646693]
[1717793632236,0.011,69224.0,69223.0,1.22286693]
[1717793633346,0.023,69224.0,69223.0,1.22386693]
[1717793633778,0.012,69224.0,69223.0,1.22286693]
[1717793634972,0.1,69236.0,69235.0,0.164435]
[1717793635187,0.0816,69237.0,69236.0,0.164433]
[1717793635388,0.38143228,69237.0,69236.0,0.164433]
[1717793635524,0.48143228,69237.0,69236.0,0.187433]
[1717793636595,0.48143228,69237.0,69236.0,0.33185193]
[1717793636830,0.40983228,69237.0,69236.0,0.69191893]
[1717793637158,0.11,69237.0,69236.0,0.69191893]
[1717793637497,0.30981202,69237.0,69236.0,0.69191893]
[1717793637712,0.40981202,69237.0,69236.0,0.69191893]
[1717793638135,0.40981202,69237.0,69236.0,0.70191893]
[1717793638310,0.121,69237.0,69236.0,0.70291893]
[1717793638699,0.021,69237.0,69236.0,0.70291893]
[1717793639131,0.02925009,69237.0,69236.0,0.70291893]
[1717793643163,0.021,69237.0,69236.0,0.70291893]
[1717793646111,0.021,69237.0,69236.0,1.11520532]
[1717793646315,0.021,69237.0,69236.0,1.35330532]
[1717793646515,0.021,69237.0,69236.0,1.22988593]
[1717793647122,0.0006592,69239.0,69238.0,0.742145]
[1717793647299,0.0006592,69239.0,69238.0,0.91956393]
[1717793648498,0.0006592,69239.0,69238.0,1.14706393]
[1717793649225,0.0006592,69239.0,69238.0,1.14806393]
[1717793649226,0.0106592,69239.0,69238.0,1.14806393]
[1717793650100,0.0196592,69239.0,69238.0,1.14906393]
[1717793650932,0.0196592,69239.0,69238.0,1.2941818]
[1717793651952,0.0196592,69239.0,69238.0,1.14906393]
[1717793655109,0.0196592,69239.0,69238.0,1.21926393]
[1717793655858,0.0096592,69239.0,69238.0,1.21826393]
[1717793656064,0.0186592,69239.0,69238.0,1.21926393]
[1717793656455,0.0006592,69239.0,69238.0,1.28289387]
[1717793656649,0.0016592,69239.0,69238.0,1.28289387]
[1717793656849,0.0106592,69239.0,69238.0,1.28389387]
[1717793657410,0.0016592,69239.0,69238.0,1.28289387]
[1717793657751,0.0036592,69239.0,69238.0,1.28289387]
[1717793659052,0.0036592,69239.0,69238.0,1.21269387]
[1717793659290,0.0036592,69239.0,69238.0,1.28289387]
[1717793659697,0.0036592,69239.0,69238.0,1.21269387]
[1717793660145,0.0036592,69239.0,69238.0,1.21726393]
[1717793660589,0.0036592,69239.0,69238.0,1.20726393]
[1717793660807,0.0036592,69239.0,69238.0,1.21726393]
[1717793661052,0.0036592,69239.0,69238.0,1.13706393]
[1717793661274,0.0036592,69239.0,69238.0,1.21726393]
[1717793661722,0.0036592,69239.0,69238.0,1.20726393]
[1717793662146,0.0036592,69239.0,69238.0,1.13706393]
[1717793662541,0.00086,69248.0,69247.0,0.686431]
[1717793662542,0.00086,69248.0,69247.0,0.786431]
[1717793662812,0.00086,69248.0,69247.0,1.10395924]
[1717793663029,0.00086,69248.0,69247.0,1.03375924]
[1717793663232,0.00086,69248.0,69247.0,0.18741]
[1717793663429,0.00086,69248.0,69247.0,0.33182893]
[1717793663635,0.00086,69248.0,69247.0,0.40202893]
[1717793663837,0.00186,69248.0,69247.0,0.41602893]
[1717793664265,0.00086,69248.0,69247.0,0.33182893]
[1717793664547,0.00186,69248.0,69247.0,0.34582893]
[1717793664702,0.00286,69248.0,69247.0,0.51735465]
[1717793664915,0.00186,69248.0,69247.0,0.50335465]
[1717793665892,0.00086,69248.0,69247.0,0.48935465]
[1717793666106,0.00686,69248.0,69247.0,0.49035465]
[1717793666307,0.01186,69248.0,69247.0,0.78017565]
[1717793667508,0.01186,69248.0,69247.0,0.69284993]
[1717793667686,0.24776,69248.0,69247.0,0.29082893]
[1717793668327,0.24776,69248.0,69247.0,0.14641]
[1717793669176,0.24176,69248.0,69247.0,0.14541]
[1717793669392,0.24776,69248.0,69247.0,0.14541]
[1717793669593,0.24776,69248.0,69247.0,0.14441]
[1717793669869,0.25876,69248.0,69247.0,0.14541]
[1717793670077,0.27276,69248.0,69247.0,0.14641]
[1717793670272,0.26176,69248.0,69247.0,0.14541]
[1717793670451,0.26176,69248.0,69247.0,0.14641]
[1717793670666,0.27476,69248.0,69247.0,0.14641]
[1717793670877,0.24976,69248.0,69247.0,0.14541]
[1717793671075,0.23676,69248.0,69247.0,0.14441]
[1717793671479,0.25076,69248.0,69247.0,0.14541]
[1717793672042,0.26476,69248.0,69247.0,0.14641]
[1717793672618,0.25076,69248.0,69247.0,0.14541]
[1717793672789,0.26476,69248.0,69247.0,0.14641]
[1717793673213,0.30798669,69248.0,69247.0,0.14641]
[1717793673419,0.29398669,69248.0,69247.0,0.14541]
[1717793673826,0.30698669,69248.0,69247.0,0.14641]
[1717793675160,0.26376,69248.0,69247.0,0.14641]
[1717793676269,0.32860004,69248.0,69247.0,0.14641]
[1717793676724,0.26376,69248.0,69247.0,0.14641]
[1717793676938,0.32860004,69248.0,69247.0,0.14641]
[1717793677393,0.26376,69248.0,69247.0,0.14641]
[1717793677603,0.32860004,69248.0,69247.0,0.14641]
[1717793678020,0.32860004,69248.0,69247.0,0.206051]
[1717793678225,0.32860004,69248.0,69247.0,0.16941]
[1717793681230,0.09270004,69248.0,69247.0,0.33382893]
[1717793681437,0.09270004,69248.0,69247.0,0.40402893]
[1717793681735,0.02786,69248.0,69247.0,0.40402893]
[1717793682062,0.02786,69248.0,69247.0,0.55391181]
[1717793686592,0.02786,69248.0,69247.0,0.48371181]
[1717793690413,0.01486,69248.0,69247.0,0.48271181]
[1717793690602,0.02786,69248.0,69247.0,0.50449022]
[1717793691277,0.01486,69248.0,69247.0,0.50349022]
[1717793691500,0.01286,69248.0,69247.0,1.01103281]
[1717793691735,0.02586,69248.0,69247.0,1.08223281]
[1717793693270,0.02586,69248.0,69247.0,1.19155069]
[1717793693580,0.02586,69248.0,69247.0,1.04166781]
[1717793693781,0.02586,69248.0,69247.0,1.19153603]
[1717793695240,0.02586,69248.0,69247.0,1.08221815]
[1717793696238,0.02586,69248.0,69247.0,1.0922211]
[1717793696449,0.02586,69248.0,69247.0,1.0822211]
[1717793697386,0.02586,69248.0,69247.0,1.0922211]
[1717793697586,0.02586,69248.0,69247.0,1.0822211]
[1717793697861,0.02586,69248.0,69247.0,1.0922211]
[1717793698239,0.02586,69248.0,69247.0,1.16365543]
[1717793699642,0.02586,69248.0,69247.0,1.08345543]
[1717793700064,0.02586,69248.0,69247.0,1.15365543]
[1717793700282,0.02586,69248.0,69247.0,1.15364963]
[1717793701803,0.02586,69248.0,69247.0,1.16364963]
[1717793702214,0.02586,69248.0,69247.0,1.08221621]
[1717793702421,0.02586,69248.0,69247.0,0.84271621]
[1717793702966,0.00086,69248.0,69247.0,0.84071808]
[1717793703376,0.02786,69248.0,69247.0,0.77151808]
[1717793703592,0.02786,69248.0,69247.0,0.84071808]
[1717793703818,0.02786,69248.0,69247.0,0.87977555]
[1717793704222,0.01386,69248.0,69247.0,0.87977555]
[1717793704642,0.02686,69248.0,69247.0,0.87977555]
[1717793705259,0.04086,69248.0,69247.0,0.87977555]
[1717793705738,0.01386,69248.0,69247.0,0.8797774]
[1717793705939,0.01486,69248.0,69247.0,0.84071993]
[1717793706344,0.01486,69248.0,69247.0,0.85071993]
[1717793706526,0.02886,69248.0,69247.0,0.85071993]
[1717793706830,0.02886,69248.0,69247.0,0.84071993]
[1717793707082,0.02886,69248.0,69247.0,0.85071993]
[1717793707294,0.02886,69248.0,69247.0,0.95146697]
[1717793707448,0.02886,69248.0,69247.0,0.96146697]
[1717793708086,0.02886,69248.0,69247.0,0.84071993]
[1717793708546,0.02886,69248.0,69247.0,0.85071993]
[1717793709901,0.02886,69248.0,69247.0,0.92851993]
[1717793710539,0.02886,69248.0,69247.0,1.21734093]
[1717793711160,0.02886,69248.0,69247.0,1.36874093]
[1717793711381,0.00086,69259.0,69258.0,0.661262]
[1717793711597,0.00086,69259.0,69258.0,1.05575093]
[1717793711815,0.00086,69259.0,69258.0,1.07875093]
[1717793712016,0.00086,69259.0,69258.0,1.00855093]
[1717793712231,0.00086,69259.0,69258.0,1.5601757]
[1717793712402,0.00086,69259.0,69258.0,1.8489507]
[1717793713053,0.00086,69259.0,69258.0,1.51260445]
[1717793713579,0.00086,69259.0,69258.0,1.51460445]
[1717793714394,0.00086,69259.0,69258.0,1.51860445]
[1717793714600,0.00186,69259.0,69258.0,1.51860445]
[1717793716306,0.00186,69259.0,69258.0,1.44840445]
[1717793716626,0.00186,69259.0,69258.0,1.51860445]
[1717793718013,0.00186,69259.0,69258.0,1.06518658]
[1717793718230,0.00186,69259.0,69258.0,1.13538658]
[1717793721073,0.00186,69259.0,69258.0,1.13540465]
[1717793721862,0.00186,69259.0,69258.0,0.77642965]
[1717793722049,0.00186,69259.0,69258.0,0.84662965]
[1717793722463,0.00186,69259.0,69258.0,0.77442965]
[1717793722774,0.00086,69259.0,69258.0,0.77042965]
[1717793723091,0.00886,69259.0,69258.0,0.84062965]
[1717793723299,0.00486,69259.0,69258.0,0.84062965]
[1717793723879,0.00886,69259.0,69258.0,0.84062965]
[1717793724285,0.00486,69259.0,69258.0,0.84062965]
[1717793724937,0.00786,69259.0,69258.0,0.84062965]
[1717793725137,0.00786,69259.0,69258.0,0.770427]
[1717793725368,0.00786,69259.0,69258.0,0.461652]
[1717793725579,0.25546,69259.0,69258.0,0.461652]
[1717793725789,0.25546,69259.0,69258.0,0.481652]
[1717793725966,0.25546,69259.0,69258.0,0.461652]
[1717793730675,0.25546,69259.0,69258.0,0.46167567]
[1717793730907,0.25546,69259.0,69258.0,0.48167567]
[1717793731166,0.00786,69259.0,69258.0,0.46167567]
[1717793731373,0.00786,69259.0,69258.0,0.48167567]
[1717793733226,0.00786,69259.0,69258.0,0.46167567]
[1717793733429,0.00786,69259.0,69258.0,0.55187567]
[1717793736013,0.00786,69259.0,69258.0,0.84065067]
[1717793736425,0.00786,69259.0,69258.0,1.14948952]
[1717793736647,0.00786,69259.0,69258.0,1.23608952]
[1717793736851,0.00786,69259.0,69258.0,1.22608952]
[1717793737034,0.00786,69259.0,69258.0,1.23608952]
[1717793737576,0.00786,69259.0,69258.0,1.52486452]
[1717793737806,0.00786,69259.0,69258.0,1.68316452]
[1717793738417,0.00386,69259.0,69258.0,1.68316452]
[1717793738624,0.00079406,69269.0,69268.0,0.154366]
[1717793738814,0.00079406,69269.0,69268.0,0.77662845]
[1717793739058,0.00079406,69269.0,69268.0,0.81127519]
[1717793739994,0.00079406,69269.0,69268.0,1.10000819]
[1717793741384,0.01179406,69269.0,69268.0,1.10000819]
[1717793741748,0.02279406,69269.0,69268.0,1.10100819]
[1717793744427,0.02279406,69269.0,69268.0,1.06636145]
[1717793746316,0.02279406,69269.0,69268.0,0.69171793]
[1717793746518,0.02279406,69269.0,69268.0,1.06627278]
[1717793747389,0.02279406,69269.0,69268.0,1.59730578]
[1717793747596,0.02279406,69269.0,69268.0,1.59730206]
[1717793747799,0.02279406,69269.0,69268.0,1.74241993]
[1717793747800,0.01779406,69269.0,69268.0,1.74241993]
[1717793748418,0.00679406,69269.0,69268.0,1.74141993]
[1717793748631,0.0019472,69270.0,69269.0,0.997022]
[1717793748845,0.0019472,69270.0,69269.0,1.6112203]
[1717793749268,0.0019472,69270.0,69269.0,2.3520493]
[1717793749474,0.0019472,69270.0,69269.0,2.49716717]
[1717793749687,2e-07,69270.0,69269.0,2.49716717]
[1717793749862,2e-07,69270.0,69269.0,2.59716717]
[1717793750087,2e-07,69270.0,69269.0,2.38716717]
[1717793750292,2e-07,69270.0,69269.0,2.39513893]
[1717793750651,0.00861,69285.0,69281.0,0.453018]
[1717793750830,0.00861,69285.0,69281.0,0.75967873]
[1717793751030,0.00861,69285.0,69281.0,1.13422986]
[1717793752214,0.00861,69285.0,69281.0,1.14422986]
[1717793752421,0.0136,69282.0,69281.0,1.14422986]
[1717793752623,0.0176,69282.0,69281.0,1.14422986]
[1717793753223,0.0176,69282.0,69281.0,1.13422986]
[1717793756040,0.0176,69282.0,69281.0,1.43283933]
[1717793756161,0.0176,69282.0,69281.0,1.67473933]
[1717793757217,0.0126,69282.0,69281.0,1.67473933]
[1717793757417,0.0086,69282.0,69281.0,1.67473933]
[1717793757706,0.0086,69282.0,69281.0,1.67873933]
[1717793758654,0.0136,69282.0,69281.0,1.67873933]
[1717793759058,0.0136,69282.0,69281.0,1.66873933]
[1717793759316,0.0086,69282.0,69281.0,1.66873933]
[1717793759541,0.0086,69282.0,69281.0,1.67073933]
[1717793760409,0.0086,69282.0,69281.0,1.67071913]
[1717793760780,0.0086,69282.0,69281.0,1.67071911]
[1717793760955,0.0086,69282.0,69281.0,1.68071911]
[1717793761362,0.0086,69282.0,69281.0,1.67071911]
[1717793761927,0.0086,69282.0,69281.0,1.68071911]
[1717793763693,0.0086,69282.0,69281.0,1.67071955]
[1717793763919,0.0086,69282.0,69281.0,1.68071955]
[1717793765104,0.0086,69282.0,69281.0,1.61051955]
[1717793765316,0.0086,69282.0,69281.0,1.68071955]
[1717793766581,0.0086,69282.0,69281.0,1.61167775]
[1717793770457,0.0086,69282.0,69281.0,1.54147775]
[1717793770883,0.0086,69282.0,69281.0,1.61167775]
[1717793771096,0.0086,69282.0,69281.0,1.54147775]
[1717793771300,0.0086,69282.0,69281.0,1.61167775]
[1717793771505,0.0086,69282.0,69281.0,1.75679562]
[1717793772123,0.0086,69282.0,69281.0,1.74679562]
[1717793772524,0.0086,69282.0,69281.0,1.75679562]
[1717793773646,0.0086,69282.0,69281.0,1.75679715]
[1717793775335,0.0086,69282.0,69281.0,1.74679715]
[1717793775547,0.0086,69282.0,69281.0,1.75679715]
[1717793780121,0.0086,69282.0,69281.0,1.75679705]
[1717793780937,0.00861,69285.0,69284.0,0.993765]
[1717793781127,0.00861,69285.0,69284.0,1.23138393]
[1717793781331,0.00861,69285.0,69284.0,1.69614718]
[1717793781533,0.00861,69285.0,69284.0,1.85534718]
[1717793782324,0.00861,69285.0,69284.0,2.14401318]
[1717793782540,0.00861,69285.0,69284.0,2.28913105]
[1717793784960,0.00861,69285.0,69284.0,2.28909208]
[1717793785363,0.00861,69285.0,69284.0,2.21889208]
[1717793785569,0.00861,69285.0,69284.0,2.14397421]
[1717793787815,0.00861,69285.0,69284.0,2.07377421]
[1717793788013,0.00861,69285.0,69284.0,2.14397421]
[1717793788849,0.00861,69285.0,69284.0,2.34397421]
[1717793789019,0.00861,69285.0,69284.0,2.28909208]
[1717793789276,0.00861,69285.0,69284.0,2.29209208]
[1717793789725,0.00861,69285.0,69284.0,2.29409208]
[1717793791208,0.1624031,69301.0,69292.0,0.03]
[1717793791435,0.1624031,69301.0,69292.0,0.64204321]
[1717793791705,0.1624031,69301.0,69292.0,0.75548753]
[1717793792357,0.0005031,69301.0,69292.0,2.46480253]
[1717793793022,0.0005031,69301.0,69292.0,2.46474845]
[1717793793262,0.01661,69293.0,69292.0,2.46574845]
[1717793793709,0.00861,69293.0,69292.0,2.46474845]
[1717793793934,0.00961,69293.0,69292.0,2.47874845]
[1717793794140,0.00961,69293.0,69292.0,2.27874845]
[1717793794356,0.00961,69293.0,69292.0,2.47874845]
[1717793794603,0.01761,69293.0,69292.0,2.47974845]
[1717793794819,0.00961,69293.0,69292.0,2.47874845]
[1717793795028,0.01366574,69313.0,69312.0,0.154275]
[1717793795203,0.01366574,69313.0,69312.0,0.33169393]
[1717793795417,0.01366574,69313.0,69312.0,0.70606413]
[1717793796255,0.03566574,69313.0,69312.0,0.70806413]
[1717793797310,0.022,69313.0,69312.0,1.06681413]
[1717793797538,0.022,69313.0,69312.0,0.99661413]
[1717793797958,0.253,69313.0,69312.0,0.99661413]
[1717793800309,0.022,69313.0,69312.0,0.99661413]
[1717793800524,0.022,69313.0,69312.0,1.12648554]
[1717793800746,0.022,69313.0,69312.0,1.41503554]
[1717793800982,0.022,69313.0,69312.0,1.41500732]
[1717793801209,0.022,69313.0,69312.0,1.41000732]
[1717793801763,0.009,69313.0,69312.0,1.40900732]
[1717793802215,0.016,69313.0,69312.0,1.41000732]
[1717793802424,0.016,69313.0,69312.0,1.40900732]
[1717793802626,0.007,69313.0,69312.0,1.40800732]
[1717793802828,0.02,69313.0,69312.0,1.40900732]
[1717793803402,0.011,69313.0,69312.0,1.40800732]
[1717793803806,0.015,69313.0,69312.0,1.40800732]
[1717793804453,0.015,69313.0,69312.0,1.27813591]
[1717793806733,0.015,69313.0,69312.0,1.53193591]
[1717793807240,0.015,69313.0,69312.0,1.60213591]
[1717793807653,0.011,69313.0,69312.0,1.60213591]
[1717793808059,0.011,69313.0,69312.0,1.89068591]
[1717793808292,2e-07,69317.0,69316.0,0.846332]
[1717793808514,2e-07,69317.0,69316.0,1.37248393]
[1717793808710,2e-07,69317.0,69316.0,1.74682591]
[1717793809888,2e-07,69317.0,69316.0,1.76282591]
[1717793809889,0.0020002,69317.0,69316.0,1.76282591]
[1717793810116,0.0020002,69317.0,69316.0,1.90594378]
[1717793810316,0.0010002,69317.0,69316.0,1.88194378]
[1717793810516,0.0010002,69317.0,69316.0,1.81174378]
[1717793810725,0.0020002,69317.0,69316.0,1.90594378]
[1717793811573,0.0030002,69317.0,69316.0,1.91794378]
[1717793812838,0.0030002,69317.0,69316.0,1.69333859]
[1717793813043,0.0030002,69317.0,69316.0,1.9178695]
[1717793813887,0.0030002,69317.0,69316.0,2.1649695]
[1717793814092,2e-07,69317.0,69316.0,2.1649695]
[1717793814298,2e-07,69317.0,69316.0,2.3170695]
[1717793814720,2e-07,69317.0,69316.0,2.5170695]
[1717793815131,2e-07,69317.0,69316.0,2.246847]
[1717793815337,2e-07,69317.0,69316.0,2.317047]
[1717793815540,2e-07,69317.0,69316.0,2.246847]
[1717793815688,2e-07,69317.0,69316.0,2.317047]
[1717793816095,2e-07,69317.0,69316.0,2.517047]
[1717793816304,2e-07,69318.0,69317.0,1.823251]
[1717793816507,2e-07,69318.0,69317.0,2.48076646]
[1717793816723,2e-07,69318.0,69317.0,2.28076646]
[1717793817089,0.0086,69329.0,69328.0,0.005]
[1717793817305,0.0086,69329.0,69328.0,1.19836794]
[1717793817510,0.0086,69329.0,69328.0,1.34806261]
[1717793817715,0.0086,69329.0,69328.0,1.46150693]
[1717793817925,0.0086,69329.0,69328.0,1.47150693]
[1717793818131,0.0086,69329.0,69328.0,1.62120693]
[1717793818804,0.0086,69340.0,69339.0,0.159218]
[1717793819025,0.0086,69340.0,69339.0,0.77107361]
[1717793819232,0.0086,69340.0,69339.0,1.13661797]
[1717793819460,0.0086,69340.0,69339.0,0.76238129]
[1717793819704,0.0086,69340.0,69339.0,1.13653797]
[1717793820132,0.0086,69340.0,69339.0,1.13853797]
[1717793820343,0.0086,69340.0,69339.0,1.06833797]
[1717793820553,0.0086,69340.0,69339.0,1.13753797]
[1717793821254,0.0086,69340.0,69339.0,0.97523061]
[1717793821460,0.0086,69340.0,69339.0,0.99023061]
[1717793821810,0.0096,69340.0,69339.0,1.06043061]
[1717793822019,0.0096,69340.0,69339.0,0.99024308]
[1717793822246,0.0096,69340.0,69339.0,1.06044308]
[1717793823721,0.0096,69340.0,69339.0,1.16648739]
[1717793824457,0.0096,69340.0,69339.0,0.94351824]
[1717793824656,0.0096,69340.0,69339.0,1.4649125]
[1717793824863,0.0096,69340.0,69339.0,1.7964125]
[1717793825092,0.0096,69340.0,69339.0,1.9485125]
[1717793825452,0.0086,69340.0,69339.0,2.0773125]
[1717793825662,0.0086,69340.0,69339.0,2.1475125]
[1717793825872,0.0096,69340.0,69339.0,2.1475125]
[1717793826286,0.0086,69340.0,69339.0,2.1475125]
[1717793826486,0.0086,69352.0,69340.0,1.198182]
[1717793826694,0.0086,69352.0,69340.0,1.95705875]
[1717793826927,0.0086,69352.0,69340.0,2.02725875]
[1717793827802,0.0086,69352.0,69351.0,0.015]
[1717793828010,0.0086,69352.0,69351.0,0.99911264]
[1717793828208,0.0086,69352.0,69351.0,1.15911264]
[1717793828427,0.0086,69352.0,69351.0,1.30423051]
[1717793828845,0.0086,69352.0,69351.0,0.9301188]
[1717793829057,0.0086,69352.0,69351.0,1.30419725]
[1717793829484,0.0086,69352.0,69351.0,1.30519725]
[1717793830033,0.0086,69352.0,69351.0,1.30619725]
[1717793830247,0.0086,69352.0,69351.0,1.94738525]
[1717793830440,0.0086,69352.0,69351.0,1.77268525]
[1717793830617,0.0086,69352.0,69351.0,1.62756738]
[1717793830823,0.0086,69352.0,69351.0,1.61756738]
[1717793831030,0.0086,69352.0,69351.0,1.38946738]
[1717793831239,0.0086,69352.0,69351.0,1.37946738]
[1717793831443,0.0086,69352.0,69351.0,1.37846738]
[1717793831652,0.0086,69352.0,69351.0,1.38746738]
[1717793831994,0.0086,69352.0,69351.0,1.52558525]
[1717793832152,0.0086,69352.0,69351.0,1.53558525]
[1717793832357,0.0086,69352.0,69351.0,1.38046738]
[1717793832583,0.0086,69352.0,69351.0,1.37946738]
[1717793832985,0.0086,69352.0,69351.0,1.38146738]
[1717793833476,0.0086,69352.0,69351.0,0.97807938]
[1717793833682,0.2385,69352.0,69351.0,0.66669138]